[Event "Early-Titled-Tuesday-Blitz-May-07-2024"]
[Site "Chess.com"]
[Date "2024.05.07"]
[Round "9"]
[White "AlexeiShirov"]
[Black "vugarrasulov"]
[Result "0-1"]
[WhiteElo "2857"]
[BlackElo "2981"]
[TimeControl "180+1"]
[EndTime "9:52:30 PDT"]
[Termination "vugarrasulov won by resignation"]

1. e4 {[%clk 0:03:00.9]} 1... c5 {[%clk 0:03:00]} 2. Nf3 {[%clk 0:03:00.6]} 2...
d6 {[%clk 0:03:00.3]} 3. d4 {[%clk 0:03:01]} 3... cxd4 {[%clk 0:03:01.1]} 4.
Nxd4 {[%clk 0:03:01.4]} 4... Nf6 {[%clk 0:03:01.7]} 5. Nc3 {[%clk 0:03:01.6]}
5... a6 {[%clk 0:03:02.2]} 6. Be3 {[%clk 0:03:00.8]} 6... e5 {[%clk 0:03:01.5]}
7. Nb3 {[%clk 0:03:00.2]} 7... Be7 {[%clk 0:03:01]} 8. f3 {[%clk 0:02:59.7]}
8... Be6 {[%clk 0:03:00.6]} 9. Qd2 {[%clk 0:03:00.2]} 9... h5 {[%clk 0:03:00.4]}
10. Nd5 {[%clk 0:02:59.4]} 10... Bxd5 {[%clk 0:02:58.1]} 11. exd5 {[%clk
0:02:59]} 11... Nbd7 {[%clk 0:02:57.9]} 12. Na5 {[%clk 0:02:56.4]} 12... Qc7
{[%clk 0:02:57.6]} 13. a4 {[%clk 0:02:50.7]} 13... O-O {[%clk 0:02:54.8]} 14.
Nc4 {[%clk 0:02:48.4]} 14... b5 {[%clk 0:02:46.9]} 15. Na3 {[%clk 0:02:37.4]}
15... bxa4 {[%clk 0:02:40.8]} 16. Bc4 {[%clk 0:02:31]} 16... e4 {[%clk
0:02:36.5]} 17. O-O {[%clk 0:02:26.7]} 17... exf3 {[%clk 0:02:34.3]} 18. gxf3
{[%clk 0:02:25.8]} 18... Rab8 {[%clk 0:02:29.7]} 19. Rab1 {[%clk 0:02:18.5]}
19... Rfe8 {[%clk 0:02:26.3]} 20. Kh1 {[%clk 0:02:15.7]} 20... Bf8 {[%clk
0:02:25]} 21. Rg1 {[%clk 0:02:13.6]} 21... Nb6 {[%clk 0:02:11.1]} 22. Bxa6
{[%clk 0:01:55.5]} 22... Nbxd5 {[%clk 0:02:03.5]} 23. Bd4 {[%clk 0:01:55.3]}
23... Qc6 {[%clk 0:01:56.8]} 24. Bd3 {[%clk 0:01:44.2]} 24... Nb4 {[%clk
0:01:49.8]} 25. Rbf1 {[%clk 0:01:17.5]} 25... Nxd3 {[%clk 0:01:45.7]} 26. cxd3
{[%clk 0:01:01.6]} 26... Re6 {[%clk 0:01:35.2]} 27. Qg5 {[%clk 0:00:55]} 27...
Ne8 {[%clk 0:01:32.6]} 28. Nc4 {[%clk 0:00:52.5]} 28... Rb5 {[%clk 0:01:27.5]}
29. Qd8 {[%clk 0:00:48.8]} 29... Rf5 {[%clk 0:01:24.3]} 30. Rg3 {[%clk
0:00:44.4]} 30... Qd5 {[%clk 0:01:15.6]} 31. Qh4 {[%clk 0:00:27.5]} 31... Be7
{[%clk 0:01:10.5]} 32. Qh3 {[%clk 0:00:27.4]} 32... Bf6 {[%clk 0:01:00.1]} 33.
Ne3 {[%clk 0:00:25.9]} 33... Rxe3 {[%clk 0:01:00.4]} 34. Bxe3 {[%clk 0:00:25]}
34... Qxd3 {[%clk 0:01:01.3]} 35. Bh6 {[%clk 0:00:21.8]} 35... Bxb2 {[%clk
0:00:58.6]} 36. Rfg1 {[%clk 0:00:20.2]} 36... a3 {[%clk 0:00:57.9]} 37. Qh4
{[%clk 0:00:19.4]} 37... Kh7 {[%clk 0:00:46.3]} 38. Bg5 {[%clk 0:00:18.3]} 38...
Nf6 {[%clk 0:00:33]} 39. Bf4 {[%clk 0:00:11.2]} 39... g6 {[%clk 0:00:31.7]} 40.
Bg5 {[%clk 0:00:10.5]} 40... a2 {[%clk 0:00:29.5]} 41. Qa4 {[%clk 0:00:09.4]}
41... Qb1 {[%clk 0:00:23.4]} 42. Bxf6 {[%clk 0:00:08.1]} 42... Bxf6 {[%clk
0:00:22.6]} 43. Qd7 {[%clk 0:00:07.4]} 43... Bg7 {[%clk 0:00:19.8]} 0-1

[Event "Early-Titled-Tuesday-Blitz-May-07-2024"]
[Site "Chess.com"]
[Date "2024.05.07"]
[Round "9"]
[White "ScofieldMichael01"]
[Black "Chessbard1972"]
[Result "1-0"]
[WhiteElo "2535"]
[BlackElo "2327"]
[TimeControl "180+1"]
[EndTime "9:52:33 PDT"]
[Termination "ScofieldMichael01 won by resignation"]

1. Nf3 {[%clk 0:03:00.9]} 1... Nf6 {[%clk 0:02:59.4]} 2. g3 {[%clk 0:03:00.1]}
2... g6 {[%clk 0:02:59]} 3. b3 {[%clk 0:03:00.5]} 3... Bg7 {[%clk 0:02:59.2]} 4.
Bb2 {[%clk 0:03:01.4]} 4... O-O {[%clk 0:02:59.4]} 5. Bg2 {[%clk 0:03:01.7]}
5... d5 {[%clk 0:02:58.5]} 6. c4 {[%clk 0:02:59]} 6... c6 {[%clk 0:02:57.7]} 7.
O-O {[%clk 0:02:58.6]} 7... a5 {[%clk 0:02:55.6]} 8. d3 {[%clk 0:02:58.4]} 8...
Na6 {[%clk 0:02:50.7]} 9. Nbd2 {[%clk 0:02:57.7]} 9... Nc5 {[%clk 0:02:48.5]}
10. Rc1 {[%clk 0:02:54.8]} 10... Ncd7 {[%clk 0:02:41.6]} 11. Rc2 {[%clk
0:02:53.2]} 11... a4 {[%clk 0:02:40.6]} 12. b4 {[%clk 0:02:49.3]} 12... a3
{[%clk 0:02:40.6]} 13. Bc3 {[%clk 0:02:48.6]} 13... Nb6 {[%clk 0:02:39.4]} 14.
Qa1 {[%clk 0:02:43.6]} 14... Na4 {[%clk 0:02:38.3]} 15. Be5 {[%clk 0:02:43.7]}
15... Be6 {[%clk 0:02:36.4]} 16. Nd4 {[%clk 0:02:33.9]} 16... Bg4 {[%clk
0:02:32]} 17. cxd5 {[%clk 0:02:32.2]} 17... cxd5 {[%clk 0:02:30.3]} 18. h3
{[%clk 0:02:30.8]} 18... Bd7 {[%clk 0:02:24.2]} 19. Rfc1 {[%clk 0:02:28.1]}
19... Rc8 {[%clk 0:02:11.8]} 20. Rxc8 {[%clk 0:02:26]} 20... Bxc8 {[%clk
0:02:11.8]} 21. Qb1 {[%clk 0:02:20.7]} 21... Bd7 {[%clk 0:02:05.7]} 22. Qb3
{[%clk 0:02:19.2]} 22... Ne4 {[%clk 0:01:52.7]} 23. Bxg7 {[%clk 0:01:46.8]}
23... Nxd2 {[%clk 0:01:51.6]} 24. Qd1 {[%clk 0:01:39.5]} 24... Kxg7 {[%clk
0:01:50]} 25. Qxd2 {[%clk 0:01:39.7]} 25... e5 {[%clk 0:01:49.2]} 26. Nb3 {[%clk
0:01:36]} 26... Bc6 {[%clk 0:01:42.9]} 27. Na5 {[%clk 0:01:23]} 27... Qb6 {[%clk
0:01:39.8]} 28. Nxc6 {[%clk 0:01:10.2]} 28... bxc6 {[%clk 0:01:39.1]} 29. Qc2
{[%clk 0:01:10.9]} 29... Nb2 {[%clk 0:01:31.3]} 30. Qc3 {[%clk 0:01:02.5]} 30...
Qd4 {[%clk 0:01:03.2]} 31. Qxa3 {[%clk 0:00:59.7]} 31... e4 {[%clk 0:00:58.2]}
32. e3 {[%clk 0:00:47.9]} 32... Qf6 {[%clk 0:00:48.9]} 33. dxe4 {[%clk
0:00:47.8]} 33... dxe4 {[%clk 0:00:47.9]} 34. Bxe4 {[%clk 0:00:48]} 34... Re8
{[%clk 0:00:42.9]} 35. Bxc6 {[%clk 0:00:43.8]} 35... Rc8 {[%clk 0:00:37.7]} 36.
b5 {[%clk 0:00:41.6]} 36... Kg8 {[%clk 0:00:27.5]} 37. Qc3 {[%clk 0:00:38.9]}
37... Qxc3 {[%clk 0:00:24.7]} 38. Rxc3 {[%clk 0:00:39.8]} 38... Na4 {[%clk
0:00:24.8]} 39. Rd3 {[%clk 0:00:35.9]} 39... Kf8 {[%clk 0:00:20]} 40. Rd4 {[%clk
0:00:35.8]} 40... Nb6 {[%clk 0:00:14.5]} 41. a4 {[%clk 0:00:34.7]} 41... Na8
{[%clk 0:00:10.6]} 42. a5 {[%clk 0:00:34.7]} 42... Rb8 {[%clk 0:00:10.4]} 43.
Bxa8 {[%clk 0:00:32.2]} 43... Rxa8 {[%clk 0:00:10.4]} 44. b6 {[%clk 0:00:28.5]}
44... Rxa5 {[%clk 0:00:10]} 45. b7 {[%clk 0:00:28.5]} 45... Rb5 {[%clk
0:00:09.7]} 46. Rd8+ {[%clk 0:00:28.5]} 46... Ke7 {[%clk 0:00:10.6]} 47. b8=Q
{[%clk 0:00:29.2]} 47... Rxb8 {[%clk 0:00:11.2]} 48. Rxb8 {[%clk 0:00:30]} 48...
h5 {[%clk 0:00:11.5]} 49. Rb6 {[%clk 0:00:30.1]} 49... Kd7 {[%clk 0:00:09.3]}
50. g4 {[%clk 0:00:31]} 50... hxg4 {[%clk 0:00:08.3]} 51. hxg4 {[%clk
0:00:31.3]} 51... Ke7 {[%clk 0:00:07.4]} 52. g5 {[%clk 0:00:30.9]} 1-0

[Event "Early-Titled-Tuesday-Blitz-May-07-2024"]
[Site "Chess.com"]
[Date "2024.05.07"]
[Round "9"]
[White "Chernov_Alexander_A"]
[Black "yonaltimur"]
[Result "1-0"]
[WhiteElo "2264"]
[BlackElo "2365"]
[TimeControl "180+1"]
[EndTime "9:52:33 PDT"]
[Termination "Chernov_Alexander_A won on time"]

1. d4 {[%clk 0:03:00.9]} 1... d5 {[%clk 0:02:11.7]} 2. c4 {[%clk 0:02:59.5]}
2... e6 {[%clk 0:02:11.9]} 3. Nc3 {[%clk 0:02:58.3]} 3... a6 {[%clk 0:02:12.4]}
4. c5 {[%clk 0:02:55.8]} 4... b6 {[%clk 0:01:54.3]} 5. cxb6 {[%clk 0:02:47.9]}
5... cxb6 {[%clk 0:01:55.2]} 6. Nf3 {[%clk 0:02:46.7]} 6... Nf6 {[%clk
0:01:53.7]} 7. Bf4 {[%clk 0:02:45.5]} 7... Bd6 {[%clk 0:01:52.9]} 8. Bg3 {[%clk
0:02:44.1]} 8... O-O {[%clk 0:01:52.5]} 9. e3 {[%clk 0:02:44.1]} 9... Bb7 {[%clk
0:01:47]} 10. Bd3 {[%clk 0:02:43.6]} 10... Nc6 {[%clk 0:01:46.9]} 11. O-O {[%clk
0:02:43.1]} 11... Rc8 {[%clk 0:01:41.4]} 12. Qe2 {[%clk 0:02:42.5]} 12... Nb4
{[%clk 0:01:36.7]} 13. Bb1 {[%clk 0:02:23.4]} 13... Bxg3 {[%clk 0:01:17.9]} 14.
hxg3 {[%clk 0:02:21.9]} 14... Qd6 {[%clk 0:01:18.2]} 15. a3 {[%clk 0:02:20.5]}
15... Nc6 {[%clk 0:01:16.7]} 16. Bd3 {[%clk 0:02:20.4]} 16... b5 {[%clk
0:01:09.7]} 17. Rac1 {[%clk 0:02:05.7]} 17... Na5 {[%clk 0:01:07.7]} 18. Ne5
{[%clk 0:02:03.5]} 18... Nc4 {[%clk 0:01:04.1]} 19. f4 {[%clk 0:01:54.1]} 19...
g6 {[%clk 0:00:58.6]} 20. g4 {[%clk 0:01:38.2]} 20... Kg7 {[%clk 0:00:50.9]} 21.
Kf2 {[%clk 0:01:29.9]} 21... h5 {[%clk 0:00:46.9]} 22. g5 {[%clk 0:01:27.1]}
22... Nd7 {[%clk 0:00:33.4]} 23. g4 {[%clk 0:01:17.7]} 23... h4 {[%clk
0:00:26.6]} 24. Rh1 {[%clk 0:01:14.7]} 24... Rh8 {[%clk 0:00:26]} 25. Rh3 {[%clk
0:01:10.7]} 25... Ndxe5 {[%clk 0:00:23.5]} 26. dxe5 {[%clk 0:01:04.4]} 26... Qd8
{[%clk 0:00:19.7]} 27. Rch1 {[%clk 0:00:47.9]} 27... Nxe3 {[%clk 0:00:19.5]} 28.
Rxh4 {[%clk 0:00:36.5]} 28... Rxh4 {[%clk 0:00:16.1]} 29. Rxh4 {[%clk
0:00:36.2]} 29... d4 {[%clk 0:00:16.6]} 30. Ne4 {[%clk 0:00:32.3]} 30... Bxe4
{[%clk 0:00:15]} 31. Bxe4 {[%clk 0:00:31.6]} 31... Qb6 {[%clk 0:00:15.1]} 32.
Bd3 {[%clk 0:00:26.6]} 32... Rc1 {[%clk 0:00:13.6]} 33. Qf3 {[%clk 0:00:22.8]}
33... Qa5 {[%clk 0:00:09.8]} 34. Qe2 {[%clk 0:00:09.6]} 34... Rf1+ {[%clk
0:00:09.4]} 35. Kg3 {[%clk 0:00:07.2]} 1-0

[Event "Early-Titled-Tuesday-Blitz-May-07-2024"]
[Site "Chess.com"]
[Date "2024.05.07"]
[Round "9"]
[White "FairChess_on_YouTube"]
[Black "nihalsarin"]
[Result "0-1"]
[WhiteElo "3082"]
[BlackElo "3153"]
[TimeControl "180+1"]
[EndTime "9:52:37 PDT"]
[Termination "nihalsarin won on time"]

1. d4 {[%clk 0:03:00.9]} 1... Nf6 {[%clk 0:02:59.2]} 2. c4 {[%clk 0:03:00.7]}
2... e6 {[%clk 0:02:56.9]} 3. Nf3 {[%clk 0:02:59.8]} 3... Nc6 {[%clk 0:02:56.4]}
4. e3 {[%clk 0:02:51.5]} 4... Bb4+ {[%clk 0:02:52.2]} 5. Bd2 {[%clk 0:02:51.3]}
5... Qe7 {[%clk 0:02:52.1]} 6. Bd3 {[%clk 0:02:49.6]} 6... e5 {[%clk 0:02:46.6]}
7. Nxe5 {[%clk 0:02:40.3]} 7... Nxe5 {[%clk 0:02:45.9]} 8. dxe5 {[%clk
0:02:40.1]} 8... Bxd2+ {[%clk 0:02:46.6]} 9. Qxd2 {[%clk 0:02:40.7]} 9... Qxe5
{[%clk 0:02:47.2]} 10. Nc3 {[%clk 0:02:41.2]} 10... d6 {[%clk 0:02:46.8]} 11.
O-O {[%clk 0:02:38.7]} 11... O-O {[%clk 0:02:46.9]} 12. f4 {[%clk 0:02:37.2]}
12... Qc5 {[%clk 0:02:37.7]} 13. Kh1 {[%clk 0:02:34.9]} 13... Re8 {[%clk
0:02:32.1]} 14. e4 {[%clk 0:02:33.7]} 14... c6 {[%clk 0:02:32.7]} 15. Rae1
{[%clk 0:02:30.6]} 15... Be6 {[%clk 0:02:21.3]} 16. b3 {[%clk 0:02:17.4]} 16...
Rad8 {[%clk 0:02:17.9]} 17. Qf2 {[%clk 0:01:10]} 17... Qxf2 {[%clk 0:01:55.3]}
18. Rxf2 {[%clk 0:01:10.9]} 18... a6 {[%clk 0:01:56.2]} 19. Rd2 {[%clk
0:00:49.7]} 19... b5 {[%clk 0:01:45.5]} 20. Kg1 {[%clk 0:00:45.7]} 20... g6
{[%clk 0:01:37.7]} 21. Kf2 {[%clk 0:00:43.4]} 21... Kg7 {[%clk 0:01:37.8]} 22.
h3 {[%clk 0:00:42.2]} 22... Re7 {[%clk 0:01:32.6]} 23. g4 {[%clk 0:00:33.7]}
23... Rde8 {[%clk 0:01:27.9]} 24. Bf1 {[%clk 0:00:25.1]} 24... b4 {[%clk
0:00:57.1]} 25. Na4 {[%clk 0:00:22.5]} 25... d5 {[%clk 0:00:47.5]} 26. exd5
{[%clk 0:00:16.1]} 26... cxd5 {[%clk 0:00:48.4]} 27. c5 {[%clk 0:00:06.3]} 27...
Ne4+ {[%clk 0:00:32.1]} 28. Rxe4 {[%clk 0:00:06.5]} 28... dxe4 {[%clk 0:00:33]}
29. Ke3 {[%clk 0:00:07.1]} 29... Rc7 {[%clk 0:00:28.4]} 30. Bxa6 {[%clk
0:00:06.5]} 30... Ra8 {[%clk 0:00:25.8]} 31. Bb5 {[%clk 0:00:06]} 31... Ra5
{[%clk 0:00:25.8]} 32. Be2 {[%clk 0:00:02.8]} 32... Bd7 {[%clk 0:00:20.9]} 33.
Nb6 {[%clk 0:00:02.7]} 33... Bc6 {[%clk 0:00:21.5]} 34. Nc4 {[%clk 0:00:02.5]}
34... Rxc5 {[%clk 0:00:21]} 35. Rd4 {[%clk 0:00:02.9]} 35... Ra7 {[%clk
0:00:19.8]} 36. Ne5 {[%clk 0:00:02.8]} 36... Rc3+ {[%clk 0:00:17.9]} 37. Kf2
{[%clk 0:00:02.3]} 37... Rxa2 {[%clk 0:00:17.4]} 38. Rxb4 {[%clk 0:00:02.2]}
38... e3+ {[%clk 0:00:15.1]} 39. Ke1 {[%clk 0:00:01.2]} 39... Rc1+ {[%clk
0:00:15.3]} 40. Bd1 {[%clk 0:00:01.5]} 40... e2 {[%clk 0:00:16]} 0-1

[Event "Early-Titled-Tuesday-Blitz-May-07-2024"]
[Site "Chess.com"]
[Date "2024.05.07"]
[Round "9"]
[White "ural58"]
[Black "azikom"]
[Result "0-1"]
[WhiteElo "2519"]
[BlackElo "2743"]
[TimeControl "180+1"]
[EndTime "9:52:38 PDT"]
[Termination "azikom won by resignation"]

1. e4 {[%clk 0:03:00.9]} 1... c6 {[%clk 0:03:00.3]} 2. Nf3 {[%clk 0:02:56.8]}
2... d5 {[%clk 0:03:01.2]} 3. e5 {[%clk 0:02:55.5]} 3... c5 {[%clk 0:02:53.4]}
4. Be2 {[%clk 0:02:41.6]} 4... Nc6 {[%clk 0:02:52.4]} 5. c3 {[%clk 0:02:39.2]}
5... Bg4 {[%clk 0:02:49.2]} 6. d4 {[%clk 0:02:35.6]} 6... cxd4 {[%clk
0:02:50.1]} 7. Nxd4 {[%clk 0:02:34.1]} 7... e6 {[%clk 0:02:50.6]} 8. Bxg4 {[%clk
0:02:33.2]} 8... Nxe5 {[%clk 0:02:50.3]} 9. Qa4+ {[%clk 0:02:20]} 9... Qd7
{[%clk 0:02:47.1]} 10. Qxd7+ {[%clk 0:02:18.1]} 10... Kxd7 {[%clk 0:02:48]} 11.
Be2 {[%clk 0:02:16.3]} 11... Nf6 {[%clk 0:02:48.3]} 12. O-O {[%clk 0:02:13.3]}
12... a6 {[%clk 0:02:47.7]} 13. Bf4 {[%clk 0:02:09.9]} 13... Ng6 {[%clk
0:02:46.8]} 14. Bg3 {[%clk 0:02:09.8]} 14... Bd6 {[%clk 0:02:47.1]} 15. Bxd6
{[%clk 0:02:08.7]} 15... Kxd6 {[%clk 0:02:48]} 16. c4 {[%clk 0:02:06.7]} 16...
Rac8 {[%clk 0:02:44.6]} 17. cxd5 {[%clk 0:02:06]} 17... Nxd5 {[%clk 0:02:44.8]}
18. Rd1 {[%clk 0:02:04.8]} 18... Ke7 {[%clk 0:02:42.3]} 19. Bf3 {[%clk
0:01:58.9]} 19... Rhd8 {[%clk 0:02:40.8]} 20. Nc3 {[%clk 0:01:58.6]} 20... Nxc3
{[%clk 0:02:33.5]} 21. bxc3 {[%clk 0:01:58.3]} 21... Rd7 {[%clk 0:02:29.9]} 22.
Rac1 {[%clk 0:01:52.1]} 22... Rcc7 {[%clk 0:02:25.3]} 23. Ne2 {[%clk 0:01:47.5]}
23... Ne5 {[%clk 0:02:22.3]} 24. Rxd7+ {[%clk 0:01:46.5]} 24... Kxd7 {[%clk
0:02:23.2]} 25. Be4 {[%clk 0:01:43.7]} 25... f5 {[%clk 0:02:21.8]} 26. Bb1
{[%clk 0:01:42.3]} 26... Ke7 {[%clk 0:02:22]} 27. f4 {[%clk 0:01:41.1]} 27...
Nc4 {[%clk 0:02:20.3]} 28. Bd3 {[%clk 0:01:38.8]} 28... Ne3 {[%clk 0:02:18.3]}
29. Kf2 {[%clk 0:01:34.7]} 29... Ng4+ {[%clk 0:02:18]} 30. Kg3 {[%clk
0:01:30.1]} 30... h6 {[%clk 0:02:17.8]} 31. h3 {[%clk 0:01:29.5]} 31... Ne3
{[%clk 0:02:17.2]} 32. Kf2 {[%clk 0:01:28.8]} 32... Nd5 {[%clk 0:02:17]} 33. g3
{[%clk 0:01:25.5]} 33... g5 {[%clk 0:02:16.1]} 34. Kf3 {[%clk 0:01:23.2]} 34...
Kf6 {[%clk 0:02:15.5]} 35. a3 {[%clk 0:01:21.5]} 35... Nb6 {[%clk 0:02:09.9]}
36. c4 {[%clk 0:01:21.1]} 36... Na4 {[%clk 0:02:09.2]} 37. Ke3 {[%clk
0:01:17.8]} 37... Rd7 {[%clk 0:02:06.8]} 38. c5 {[%clk 0:01:14.7]} 38... Nb2
{[%clk 0:01:47.5]} 39. Bb1 {[%clk 0:01:00]} 39... Nd1+ {[%clk 0:01:46.2]} 40.
Kf3 {[%clk 0:00:59.3]} 40... Rd2 {[%clk 0:01:44.5]} 41. Bc2 {[%clk 0:00:37]}
41... Nb2 {[%clk 0:01:41.5]} 42. Bb3 {[%clk 0:00:32.8]} 42... Rd3+ {[%clk
0:01:38.5]} 43. Kf2 {[%clk 0:00:29.6]} 43... Rxb3 {[%clk 0:01:38.2]} 44. c6
{[%clk 0:00:28.8]} 44... Nd3+ {[%clk 0:01:23.6]} 45. Kf1 {[%clk 0:00:23.6]}
45... bxc6 {[%clk 0:01:19.6]} 46. Rxc6 {[%clk 0:00:23.5]} 46... Rb1+ {[%clk
0:01:17.4]} 47. Kg2 {[%clk 0:00:22.3]} 47... Rb2 {[%clk 0:01:16.8]} 48. Kf1
{[%clk 0:00:22.3]} 48... gxf4 {[%clk 0:01:08.3]} 49. gxf4 {[%clk 0:00:21.8]}
49... a5 {[%clk 0:01:03.9]} 50. Nd4 {[%clk 0:00:20.4]} 50... Rb1+ {[%clk
0:01:01.5]} 51. Kg2 {[%clk 0:00:14]} 51... Nxf4+ {[%clk 0:01:01.7]} 52. Kg3
{[%clk 0:00:14.2]} 52... Rd1 {[%clk 0:00:52]} 53. Nb3 {[%clk 0:00:09.1]} 53...
Rd3+ {[%clk 0:00:50.7]} 54. Kxf4 {[%clk 0:00:09.2]} 54... Rxb3 {[%clk
0:00:50.5]} 55. a4 {[%clk 0:00:08.5]} 55... Rb4+ {[%clk 0:00:49.9]} 0-1

[Event "Early-Titled-Tuesday-Blitz-May-07-2024"]
[Site "Chess.com"]
[Date "2024.05.07"]
[Round "9"]
[White "HouseOfDurin"]
[Black "Oleg_Papayan"]
[Result "0-1"]
[WhiteElo "2250"]
[BlackElo "2664"]
[TimeControl "180+1"]
[EndTime "9:52:38 PDT"]
[Termination "Oleg_Papayan won on time"]

1. d4 {[%clk 0:03:00.9]} 1... d5 {[%clk 0:02:57.2]} 2. Bg5 {[%clk 0:03:01.3]}
2... c5 {[%clk 0:02:55.3]} 3. c3 {[%clk 0:03:01]} 3... h6 {[%clk 0:02:54.7]} 4.
Bh4 {[%clk 0:03:00.8]} 4... Qb6 {[%clk 0:02:53.7]} 5. Qc2 {[%clk 0:03:00.9]}
5... Nc6 {[%clk 0:02:49.4]} 6. e3 {[%clk 0:03:00.8]} 6... g6 {[%clk 0:02:36.5]}
7. Nd2 {[%clk 0:02:56.2]} 7... Bf5 {[%clk 0:02:36]} 8. Qb3 {[%clk 0:02:56.4]}
8... c4 {[%clk 0:02:35.6]} 9. Qxb6 {[%clk 0:02:56]} 9... axb6 {[%clk 0:02:36.2]}
10. f3 {[%clk 0:02:50.5]} 10... g5 {[%clk 0:02:18.2]} 11. e4 {[%clk 0:02:47.5]}
11... gxh4 {[%clk 0:02:01.9]} 12. exf5 {[%clk 0:02:47.4]} 12... b5 {[%clk
0:02:00.8]} 13. f4 {[%clk 0:02:23.1]} 13... Nf6 {[%clk 0:01:53.3]} 14. Ngf3
{[%clk 0:02:17.9]} 14... Nh5 {[%clk 0:01:50.5]} 15. Nxh4 {[%clk 0:02:14.1]}
15... Nxf4 {[%clk 0:01:50.7]} 16. g3 {[%clk 0:02:14.4]} 16... Nh5 {[%clk
0:01:48.5]} 17. Bg2 {[%clk 0:02:10.6]} 17... Nf6 {[%clk 0:01:46.2]} 18. Nhf3
{[%clk 0:02:06.2]} 18... b4 {[%clk 0:01:39.1]} 19. Ne5 {[%clk 0:02:03.4]} 19...
e6 {[%clk 0:01:29.6]} 20. O-O {[%clk 0:01:52.8]} 20... Nxe5 {[%clk 0:01:29]} 21.
dxe5 {[%clk 0:01:52.7]} 21... Ng4 {[%clk 0:01:29.6]} 22. fxe6 {[%clk 0:01:41.8]}
22... Bc5+ {[%clk 0:01:28.1]} 23. Kh1 {[%clk 0:01:41.2]} 23... fxe6 {[%clk
0:01:22.9]} 24. h3 {[%clk 0:01:31.8]} 24... Nf2+ {[%clk 0:01:06.9]} 25. Kh2
{[%clk 0:01:31.1]} 25... Nd3 {[%clk 0:01:07.8]} 26. Rf6 {[%clk 0:01:13]} 26...
Kd7 {[%clk 0:01:08]} 27. Rf7+ {[%clk 0:00:53.7]} 27... Be7 {[%clk 0:01:03.1]}
28. cxb4 {[%clk 0:00:53.7]} 28... Nxe5 {[%clk 0:00:59.4]} 29. Rg7 {[%clk
0:00:50.9]} 29... Rag8 {[%clk 0:00:49.5]} 30. Rxg8 {[%clk 0:00:50.8]} 30... Rxg8
{[%clk 0:00:50.4]} 31. a3 {[%clk 0:00:51.2]} 31... Nd3 {[%clk 0:00:50.2]} 32.
Rb1 {[%clk 0:00:33.6]} 32... Bd6 {[%clk 0:00:50.5]} 33. Nf1 {[%clk 0:00:31.9]}
33... Be5 {[%clk 0:00:51.1]} 34. b3 {[%clk 0:00:14.8]} 34... c3 {[%clk
0:00:51.3]} 35. Ne3 {[%clk 0:00:13.1]} 35... Rxg3 {[%clk 0:00:48.8]} 36. Nc2
{[%clk 0:00:11.1]} 36... Re3+ {[%clk 0:00:43]} 37. Kg1 {[%clk 0:00:10.9]} 37...
Re2 {[%clk 0:00:43.9]} 38. Bf1 {[%clk 0:00:09.5]} 38... Rd2 {[%clk 0:00:31.8]}
39. Bxd3 {[%clk 0:00:09.2]} 39... Rxd3 {[%clk 0:00:32.7]} 40. Re1 {[%clk
0:00:06.8]} 40... Kd6 {[%clk 0:00:28.5]} 41. Kf1 {[%clk 0:00:04.1]} 41... Rxh3
{[%clk 0:00:26.9]} 42. b5 {[%clk 0:00:03.9]} 42... d4 {[%clk 0:00:24.3]} 43. Nb4
{[%clk 0:00:03.7]} 43... d3 {[%clk 0:00:21.9]} 44. Re4 {[%clk 0:00:00.7]} 44...
d2 {[%clk 0:00:19.5]} 45. Ke2 {[%clk 0:00:00.2]} 45... Rh1 {[%clk 0:00:19.1]}
0-1

[Event "Early-Titled-Tuesday-Blitz-May-07-2024"]
[Site "Chess.com"]
[Date "2024.05.07"]
[Round "9"]
[White "Firouzja2003"]
[Black "wonderfultime"]
[Result "0-1"]
[WhiteElo "3195"]
[BlackElo "3128"]
[TimeControl "180+1"]
[EndTime "9:52:44 PDT"]
[Termination "wonderfultime won on time"]

1. e4 {[%clk 0:03:00.9]} 1... e5 {[%clk 0:03:00.2]} 2. Nf3 {[%clk 0:03:01.1]}
2... Nc6 {[%clk 0:03:00.1]} 3. Bb5 {[%clk 0:03:01.1]} 3... a6 {[%clk 0:02:59.7]}
4. Ba4 {[%clk 0:03:01.5]} 4... Bc5 {[%clk 0:03:00.1]} 5. c3 {[%clk 0:02:59.4]}
5... Nge7 {[%clk 0:03:00]} 6. O-O {[%clk 0:02:57.5]} 6... Ng6 {[%clk 0:03:00.1]}
7. d4 {[%clk 0:02:56.9]} 7... Ba7 {[%clk 0:03:00.8]} 8. Bg5 {[%clk 0:02:53.1]}
8... f6 {[%clk 0:03:00.8]} 9. Be3 {[%clk 0:02:53.3]} 9... O-O {[%clk 0:03:00.7]}
10. Re1 {[%clk 0:02:51.8]} 10... Kh8 {[%clk 0:03:00.8]} 11. h3 {[%clk
0:02:50.9]} 11... d6 {[%clk 0:02:59.6]} 12. Bb3 {[%clk 0:02:47.2]} 12... Nce7
{[%clk 0:02:45.9]} 13. Nbd2 {[%clk 0:02:43.6]} 13... exd4 {[%clk 0:02:41.8]} 14.
Nxd4 {[%clk 0:02:39.2]} 14... f5 {[%clk 0:02:33.9]} 15. N2f3 {[%clk 0:02:25.1]}
15... f4 {[%clk 0:02:26]} 16. Bd2 {[%clk 0:02:17.9]} 16... Nc6 {[%clk 0:02:26]}
17. Qe2 {[%clk 0:02:00.3]} 17... Nce5 {[%clk 0:02:16.8]} 18. Rad1 {[%clk
0:02:00.1]} 18... Qf6 {[%clk 0:02:14.6]} 19. Bc1 {[%clk 0:01:47.6]} 19... Bd7
{[%clk 0:02:04.9]} 20. Kh2 {[%clk 0:01:25.7]} 20... Rae8 {[%clk 0:02:02.4]} 21.
Bc2 {[%clk 0:01:17.8]} 21... Bc8 {[%clk 0:01:51.2]} 22. Nxe5 {[%clk 0:01:00.8]}
22... Nxe5 {[%clk 0:01:18.1]} 23. Qh5 {[%clk 0:01:00.5]} 23... g6 {[%clk
0:01:06]} 24. Qh6 {[%clk 0:00:55]} 24... Bg4 {[%clk 0:00:40.6]} 25. f3 {[%clk
0:00:47.4]} 25... Bd7 {[%clk 0:00:40.8]} 26. h4 {[%clk 0:00:35.8]} 26... Rf7
{[%clk 0:00:20.1]} 27. Ne2 {[%clk 0:00:31]} 27... Rg8 {[%clk 0:00:05.4]} 28.
Nxf4 {[%clk 0:00:23.9]} 28... Qe7 {[%clk 0:00:04.8]} 29. Nd5 {[%clk 0:00:20.8]}
29... Qe6 {[%clk 0:00:05]} 30. Nf4 {[%clk 0:00:15.9]} 30... Nxf3+ {[%clk
0:00:05.5]} 31. Kh1 {[%clk 0:00:08.2]} 31... Qg4 {[%clk 0:00:06]} 32. e5 {[%clk
0:00:08.2]} 32... Nxh4 {[%clk 0:00:05]} 33. Be4 {[%clk 0:00:02.3]} 33... Bc6
{[%clk 0:00:05.4]} 34. Bxc6 {[%clk 0:00:01.1]} 34... bxc6 {[%clk 0:00:06.3]} 35.
exd6 {[%clk 0:00:01.6]} 35... Rxf4 {[%clk 0:00:06.8]} 36. Rd2 {[%clk 0:00:01.9]}
36... Rf2 {[%clk 0:00:06.1]} 37. Rxf2 {[%clk 0:00:01.7]} 37... Bxf2 {[%clk
0:00:07]} 38. Qg5 {[%clk 0:00:01]} 38... Qxg5 {[%clk 0:00:07.1]} 39. Bxg5 {[%clk
0:00:00.9]} 39... Kg7 {[%clk 0:00:06]} 40. d7 {[%clk 0:00:01.2]} 40... Bxe1
{[%clk 0:00:05.8]} 0-1